Cogmind - Beta 12 @@@ ROGUE MODE // 2023.12.23 @ 14:02:25 Player: Ischenous Result: Destroyed by G-47 Trooper with Particle Gun Performance ------------- Evolutions (2) 1000 Regions Visited (3) 600 Robots Destroyed (13) 65 Value Destroyed (145) 145 Prototype IDs (4) 80 Alien Tech Used (0) 0 Bonus (0) 0 TOTAL SCORE: 1890 Bonus ------- None Cogmind --------- Core Integrity 0/550 Matter 59/300 Energy 66/100 System Corruption 0% Temperature Cool (27) Movement Core (100) Ox1 Location -8/Materials Parts ------- > --- POWER (2) -------- (None) > --- PROPULSION (3) --- (None) > --- UTILITY (4) ------ Improved Sensor Array ECM Suite > --- WEAPON (2) ------- Improved Datajack > --- INVENTORY (5) ---- Light Nuclear Core Improved Datajack Peak State ------------ > --- POWER ------------ Light Ion Engine > --- PROPULSION ------- Cesium-ion Thruster Cesium-ion Thruster Cesium-ion Thruster > --- UTILITY ---------- Small Storage Unit Structural Scanner ECM Suite > --- WEAPON ----------- Field Laser Improved Datajack > --- INVENTORY -------- Ion Engine Flight Unit Flight Unit Improved Sensor Array Assault Rifle Improved Datajack [Rating: 20] Favorites ----------- Power Ion Engine Engine Ion Engine Propulsion Flight Unit Wheel Wheel Flight Unit Flight Unit Utility ECM Suite Device ECM Suite Storage Small Storage Unit Weapon Assault Rifle Energy Gun Field Laser Ballistic Gun Assault Rifle Special Melee Weapon Improved Datajack Build | -11 -10 -9 -8 ------- Run | Jun Mat Mat Mat Slots Evolved 4 | . . 2 2 Power 1 | . . 1 . Propulsion 1 | . . 1 . Utility 2 | . . . 2 Weapon . | . . . . Parts Attached 27 | 4 7 4 12 Power 3 | 1 1 . 1 Engine 3 | 1 1 . 1 Core . | . . . . Reactor . | . . . . Propulsion 13 | 1 4 4 4 Treads . | . . . . Leg . | . . . . Wheel 1 | 1 . . . Hover . | . . . . Flight 12 | . 4 4 4 Utility 5 | . 2 . 3 Device 4 | . 2 . 2 Storage 1 | . . . 1 Processor . | . . . . Hackware . | . . . . Protection . | . . . . Artifact . | . . . . Weapon 6 | 2 . . 4 Energy Gun 1 | . . . 1 Energy Cannon . | . . . . Ballistic Gun 3 | 2 . . 1 Ballistic Cannon . | . . . . Launcher . | . . . . Special Weapon . | . . . . Impact Weapon . | . . . . Slashing Weapon . | . . . . Piercing Weapon . | . . . . Special Melee Weapon 2 | . . . 2 Unidentified Prototypes . | . . . . Parts Lost 16 | . 2 1 13 Power 3 | . 1 . 2 Propulsion 7 | . 1 . 6 Utility 3 | . . . 3 Weapon 3 | . . 1 2 Highest Loss Streak 12 | . 2 1 12 To Critical Strikes . | . . . . Average Slot Usage (%) 66 | . 76 86 40 Engine 9 | . 12 11 3 Wheel 4 | . 8 . . Flight 13 | . 9 31 11 Device 15 | . 16 22 12 Storage 1 | . . . 3 Ballistic Gun 18 | . 28 22 1 Special Melee Weapon 1 | . . . 4 Naked Turns . | . . . . Heaviest Build 15 | 8 10 9 15 Greatest Support 15 | 10 10 14 15 Greatest Overweight (x) 2 | . 2 1 2 Average Overweight (x) . | . . . . Largest Inventory Capacity 8 | 5 5 5 8 Average Capacity 5 | 5 5 5 6 Most Carried 8 | 5 5 5 8 Average Carried 4 | 2 4 3 4 Final Capacity 5 | 5 5 5 5 Final Carried 5 | 3 4 5 2 Class Distribution -------------------- 63% | Mutant 15% | Infiltrator-Mutant 12% | Scavenger-Mutant 8% | Infiltrator-Sprinter Dominant Class ---------------- Mutant | -10/Materials Scavenger-Mutant | -9/Materials Mutant | -8/Materials Resources | -11 -10 -9 -8 ----------- Run | Jun Mat Mat Mat Matter Collected 265 | 108 137 18 2 Remotely . | . . . . Salvage Created 228 | . 149 18 61 Parts 24 | . 15 2 7 Haulers Intercepted . | . . . . Recyclers Shooed . | . . . . Parts Field Recycled . | . . . . Retrieved Matter . | . . . . Parts Self-Destructed . | . . . . Prevented . | . . . . Kills | -11 -10 -9 -8 ------- Run | Jun Mat Mat Mat Combat Hostiles Destroyed 12 | . 7 1 4 Guns 12 | . 7 1 4 Classes Destroyed 3 | . 3 . . Worker 1 | . 1 . . Swarmer 11 | . 6 1 4 Grunt 1 | . 1 . . Best Kill Streak 8 | . 8 1 4 Combat Bots Only 4 | . 4 1 4 Max Kills in Single Turn 2 | . 1 1 2 Gunslinging . | . . . . Exploded . | . . . . Melee . | . . . . Uniques/NPCs Destroyed . | . . . . Combat | -11 -10 -9 -8 -------- Run | Jun Mat Mat Mat Damage Taken 1577 | . 291 88 1198 Core 637 | . 69 7 561 Absorbed by Shields . | . . . . Core Remaining (%) 90 | 100 72 98 . Volleys Fired 39 | . 26 2 11 Largest 2 | . 2 2 2 Hottest 83 | . 40 40 83 Shots Fired 71 | . 52 4 15 Gun 71 | . 52 4 15 Cannon . | . . . . Launcher . | . . . . Special . | . . . . Kinetic 60 | . 52 4 4 Thermal 11 | . . . 11 Explosive . | . . . . Electromagnetic . | . . . . Robot Hit Streak 15 | . 15 1 5 Robot Miss Streak 6 | . 4 6 3 Penetration Max . | . . . . Secondary Targets 2 | . 1 . 1 Max Gunslinging Chain 1 | . 1 . 1 Shots Hit Robots 47 | . 32 1 14 Core Hits 19 | . 11 1 7 Critical Kills . | . . . . Critical Parts Destroyed . | . . . . Critical Strikes . | . . . . Melee Attacks 7 | . . . 7 Impact . | . . . . Slashing . | . . . . Piercing . | . . . . Sneak Attacks 1 | . . . 1 Combat Hostiles . | . . . . Follow-up Attacks . | . . . . Damage Inflicted 551 | . 352 14 185 Guns 542 | . 352 14 176 Cannons . | . . . . Explosions . | . . . . Melee . | . . . . Ramming 9 | . . . 9 Kinetic 411 | . 352 14 45 Thermal 131 | . . . 131 Explosive . | . . . . Electromagnetic . | . . . . Impact . | . . . . Slashing . | . . . . Piercing . | . . . . Highest Corruption 2 | . 2 . . Average Corruption 2 | . 2 . . Corruption Purged . | . . . . Corruption Blocked . | . . . . Overload Shots . | . . . . Overflow Damage . | . . . . Projectiles . | . . . . Explosions . | . . . . Melee . | . . . . Knockbacks . | . . . . Impact . | . . . . Kinetic . | . . . . Secondary . | . . . . Self-Inflicted Damage 3 | . . . 3 Shots . | . . . . Rammed 3 | . . . 3 Targets Rammed 3 | . . . 3 Kicked . | . . . . Crushed . | . . . . Highest Temperature 153 | . 8 3 153 Average Temperature 33 | . 3 3 53 Received Heat Transfer 591 | . 60 36 495 Siege Activations . | . . . . Robots Corrupted . | . . . . Combat Hostiles . | . . . . Parts Fried . | . . . . Impact Corruptions . | . . . . Robots Melted . | . . . . Combat Hostiles . | . . . . Parts Melted . | . . . . Heat Transferred 296 | . . . 296 Parts Sabotaged . | . . . . Parts Stolen . | . . . . Parts Stripped . | . . . . Power Chain Reactions . | . . . . Missiles Intercepted . | . . . . Alert | -11 -10 -9 -8 ------- Run | Jun Mat Mat Mat Peak Influence 329 | . 220 148 329 Initial 57 | . . 8 57 Average 97 | . 81 71 160 Maximum Alert Level 1 | . 1 . 1 Low Security (%) 82 | 100 86 100 63 Level 1 17 | . 13 . 36 Level 2 . | . . . . Level 3 . | . . . . Level 4 . | . . . . Level 5 . | . . . . High Security . | . . . . Max Security . | . . . . Squads Dispatched 4 | . 1 1 2 Investigation 1 | . . 1 . Extermination . | . . . . Reinforcement 3 | . 1 . 2 Assault . | . . . . Garrison . | . . . . Intercept . | . . . . Searches Triggered . | . . . . Construction Impeded . | . . . . Haulers Reinforced . | . . . . Active Scanning Responses . | . . . . Cargo Convoy Interrupts . | . . . . Stealth | -11 -10 -9 -8 --------- Run | Jun Mat Mat Mat Distress Signals 5 | . 2 1 2 Communications Jammed . | . . . . Distress Signals . | . . . . Times Spotted 65 | . 21 16 28 Peak Tracking Total 17 | . 5 7 17 Tactical Retreats 10 | . 3 3 4 Traps | -11 -10 -9 -8 ------- Run | Jun Mat Mat Mat Traps Triggered 1 | . 1 . . Indirectly . | . . . . Trap Hack Attempts . | . . . . Triggered . | . . . . Disarmed . | . . . . Reprogrammed . | . . . . Reused . | . . . . Traps Extracted . | . . . . Installed . | . . . . Triggered . | . . . . Machines | -11 -10 -9 -8 ---------- Run | Jun Mat Mat Mat Machines Disabled . | . . . . Max in Single Turn . | . . . . Machines Repaired . | . . . . Machines Sabotaged . | . . . . Overloaded Fab Kills . | . . . . Hacking | -11 -10 -9 -8 --------- Run | Jun Mat Mat Mat Machines Accessed 4 | . 1 2 1 Terminals 3 | . 1 1 1 Fabricators . | . . . . Repair Stations . | . . . . Recycling Units . | . . . . Scanalyzers 1 | . . 1 . Garrison Access . | . . . . Total Hacks 18 | . 4 5 9 Successful 12 | . 3 3 6 Failed 6 | . 1 2 3 Catastrophic 1 | . . . 1 Database Lockouts . | . . . . Manual . | . . . . Terminals 15 | . 4 2 9 Fabricators . | . . . . Repair Stations . | . . . . Recycling Units . | . . . . Scanalyzers 3 | . . 3 . Garrison Access . | . . . . Terminal Hacks 10 | . 3 1 6 Record 5 | . . . 5 Prototype ID Bank 2 | . 1 . 1 Alert Level 1 | . 1 . . Hauler Manifests 1 | . 1 . . Zone Layout 1 | . . 1 . Fabricator Hacks . | . . . . Repair Station Hacks . | . . . . Recycling Unit Hacks . | . . . . Scanalyzer 2 | . . 2 . Insert Component 1 | . . 1 . Analyze 1 | . . 1 . Garrison Access Hacks . | . . . . Unauthorized Hacks . | . . . . Terminals . | . . . . Fabricators . | . . . . Repair Stations . | . . . . Recycling Units . | . . . . Scanalyzers . | . . . . Garrison Access . | . . . . Data Cores Recovered . | . . . . Used . | . . . . Hacking Detections 4 | . 1 2 1 Full Trace Events 1 | . . 1 . Feedback Events . | . . . . Feedback Blocked . | . . . . Robot Schematics Acquired . | . . . . Robots Built . | . . . . Authchips . | . . . . Time . | . . . . Total Robot Build Rating . | . . . . Part Schematics Acquired 1 | . . 1 . Parts Built . | . . . . Authchips . | . . . . Time . | . . . . Total Part Build Rating . | . . . . Parts Repaired . | . . . . Time . | . . . . Parts Recycled . | . . . . Recycled Matter . | . . . . Retrieved Matter . | . . . . Retrieved Components . | . . . . Parts Scanalyzed 1 | . . 1 . Part Schematics Acquired 1 | . . 1 . Parts Damaged . | . . . . Bothacking | -11 -10 -9 -8 ------------ Run | Jun Mat Mat Mat Used RIF Installer . | . . . . Robots Hacked 2 | . . . 2 Non-combat . | . . . . Combat 2 | . . . 2 Robot Hacks Applied 2 | . . . 2 parse_system 2 | . . . 2 Relay Couplers Released . | . . . . Fabnet Peak Effective % . | . . . . Robots Rewired . | . . . . Allies Hacked . | . . . . Hacks Repelled . | . . . . Allies | -11 -10 -9 -8 -------- Run | Jun Mat Mat Mat Total Allies . | . . . . Largest Group . | . . . . Highest-Rated Group . | . . . . Highest-Rated Ally . | . . . . Total Orders . | . . . . Ally Attacks . | . . . . Total Damage . | . . . . Kills . | . . . . Allies Corrupted . | . . . . Allies Melted . | . . . . Intel | -11 -10 -9 -8 ------- Run | Jun Mat Mat Mat Robot Analysis Total . | . . . . Derelict Logs Recovered . | . . . . Drone Launches . | . . . . Drone Recoveries . | . . . . Exploration | -11 -10 -9 -8 ------------- Run | Jun Mat Mat Mat Turns Passed 763 | 44 402 102 215 Spaces Moved 836 | 45 239 246 306 Core 129 | 8 . . 121 Treads . | . . . . Legs . | . . . . Wheels 182 | 37 145 . . Hover . | . . . . Flight 525 | . 94 246 185 Fastest Speed 29 | 50 37 30 29 Average Speed 56 | 74 86 34 47 Slowest Speed 200 | 80 200 117 150 Overloaded Moves . | . . . . Propulsion Burnouts . | . . . . Robots Hopped 7 | . . 1 6 Cave-ins Triggered . | . . . . Exploration Rate (%) 27 | 3 32 31 45 Regions Visited 3 Branch Regions . Pre-discovered Areas . | . . . . Known Exits Taken . | . . . . Unknown Exits Taken 3 | 1 1 1 . Scrap Searched . | . . . . Spaces Dug . | . . . . Terrain Destroyed . | . . . . Melee . | . . . . Projectile . | . . . . AOE . | . . . . Terrain Rammed . | . . . . Walls Destroyed . | . . . . Machines Disabled . | . . . . Actions | -11 -10 -9 -8 --------- Run | Jun Mat Mat Mat Total 1058 | 55 389 260 354 Wait 112 | . 101 . 11 Move 822 | 44 238 243 297 Hop 4 | . . 1 3 Pick Up 32 | 7 11 6 8 Fast Attach . | . . . . Attach 21 | 4 6 1 10 Detach 2 | . 1 . 1 Swap 6 | . 1 3 2 Drop 10 | . 5 4 1 Fire 39 | . 26 2 11 Melee 7 | . . . 7 Ram 3 | . . . 3 Kick . | . . . . Crush . | . . . . Escape Stasis . | . . . . Rewire . | . . . . Trap . | . . . . Miscellaneous . | . . . . Route ------- -11/Junkyard -10/Materials -9/Materials -8/Materials History --------- Turn | Location | Event 17 | -11/Junkyard | Discovered new exit (range 15) 45 | -11/Junkyard | Entered Materials 323 | -10/Materials | Build established: Mutant 420 | -10/Materials | Discovered new exit (range 15) 447 | -10/Materials | Entered another Materials area 447 | -9/Materials | Evolved 2 slots: Power x1, Propulsion x1 532 | -9/Materials | Discovered new exit (range 14) 549 | -9/Materials | Entered another Materials area 549 | -8/Materials | Evolved 2 slots: Utility x2 635 | -8/Materials | Core integrity fell below 50% 670 | -8/Materials | Core integrity fell below 20% 714 | -8/Materials | Lost 12 parts (2p6n2u2w) 764 | -8/Materials | Destroyed by G-47 Trooper with Particle Gun Last Messages --------------- 00683_ Ion Engine destroyed. 00688_ K-01 Serf collects debris. 00696_ O-16 Technician: "IFF HANDSHAKE FAILED. SECURING TERMINAL." 00698_ ALERT: Hostiles spotted, dispatching reinforcements to Terminal M005. 00703_ Sneak attack on K-01 Serf. 00703_ Jacked K-01 Serf... >>find_chute No applicable chute records found in memory. 00709_ T-07 Excavator is excavating. 00723_ Acquired Imp. Sensor Array. 00733_ Penetrated by Slug. 00733_ Imp. Sensor Array destroyed. 00734_ Acquired 2 matter. [Achievement: Slippery One] 00759_ Jacked G-47 Trooper... >>parse_system Reading system data... 00763_ Slammed into G-47 Trooper. 00764_ Critical hit (Burn: +37). Map ----- +----------------------------------------------------+ | | | | | | | | | | | | | | | | | | | | | | | | | | | | | | | | | | | | | | | ?????????????????????????????????????????????????? | | ?????????????????????????????####????????????????? | | ????????????????????????????# #????????????????? | | ????????????????????????????# T #????????????????? | | ??????????????????########### #????????????????? | | ???????????H ? g " ! #????????????????? | | ??????????????????#######@# # #?????????####???? | | ??????????????????????# g # # #?????????# #???? | | ??????????????????????# g# # #########?## ##### | | ??????????????????????# # ##+### #?# | | ??????????????????????# # + """ ### | | ??????????????????????# ######## """ + | | ??????????????????????# #??????#! """ ######+### | | ??????????????????????# #??????# #???? ?# | | ??????????????????????#####??????# !#???? ?# | | ?????????????????????????????????########??? # | | ???????????????????????????????????????????? ]] # | | ??????????????????????????????????????????? ]] # | | ??????????????????????????????????????????? ] # | | ??????????????????????????????????????????######## | | ???????????????????????????????????????####??????# | | ???????????????????????????????????????# ] ????# | | ???????????????????????????????????????# "T??# | | ###??????? #???????????????????????????#[ [ # | | !#??????? #???????????????????????????# + | | #??????? #???????????????????????????# # | | " ########/##??????????????????????????# """ ""??# | | " ## #?########???????????????????""" ????# | | " #? #?#== #????????????????????"??????# | | " #? #?#=! #???????????????????????????# | | " #?? ??#= #???????????????????????????# | +----------------------------------------------------+ Best States ------------- Heat Dissipation 31 Energy Generation 10 Energy Capacity 250 Matter Stores 181 Matter Capacity 300 Sight Range 16 Robot Scan Range 15 Terrain Scan Density 10 ECM Strength 1 Evasion (%) 64 Item Schematics ----------------- Ion Engine | -9/Materials | Scanalyzed Robot Schematics ------------------ None Fabricated ------------ Nothing Alien Tech Used ----------------- None Achievements -------------- Slippery One Challenges ------------ None Game ------ Seed FissionMetafiberSpear Manual? 0 Play Time 00:21:12 Cumulative 108.7 hours Start 2023.12.23 @ 13:42:05 End 2023.12.23 @ 14:02:25 Sessions 1 Manual Loads 0 Difficulty Rogue Special Mode None Game No. 96 Rogue 96 Adventurer 0 Explorer 0 Win Type - Total 0 Types 0/0/0/0/0/0/0/0/0 Lore% 35 Gallery% 39 Achievement% 30 Wizard Run 0 Options --------- ASCII 0 Keyboard 0 Movement Arrows Keybinds 0 Fullscreen 1 Font 18/SmallcapsGlow Map View 76x50 Tactical HUD 1 Map Filters NONE Filters NONE Steam 1 RUN: 233747be-9574-4431-b189-9c32c9f65baa